bitfinex/quotes_ETHUSD_20250904
["timestamp","ask_amount","ask_price","bid_price","bid_amount"]
[1757026932552,0.001,4348.7,4348.6,1.2612]
[1757026933053,2.30053779,4348.7,4348.6,0.3043]
[1757026933241,2.29974932,4348.3,4348.2,1.695]
[1757026933433,2.29974932,4348.3,4348.2,1.9892]
[1757026933950,0.001,4348.7,4348.2,1.9892]
[1757026933951,3.09254212,4348.7,4348.2,0.2942]
[1757026934247,2.2999609,4347.9,4347.8,0.4292]
[1757026934449,2.2999609,4347.9,4347.8,0.7234]
[1757026934618,2.2999609,4347.9,4347.8,1.1737]
[1757026935219,2.29990984,4348.0,4347.8,0.7445]
[1757026935517,2.2999609,4347.9,4347.8,1.1737]
[1757026936152,2.2999169,4348.0,4347.8,1.1737]
[1757026936648,2.2999609,4347.9,4347.8,0.7445]
[1757026936850,2.3000138,4347.8,4347.7,1e-08]
[1757026937151,2.4152138,4347.8,4347.7,1e-08]
[1757026937455,2.7257138,4347.8,4347.7,1e-08]
[1757026938419,3.9965138,4347.8,4347.7,1e-08]
[1757026938728,7.4538138,4347.8,4347.7,1e-08]
[1757026939223,6.2072138,4347.8,4347.7,1e-08]
[1757026939418,5.4152138,4347.8,4347.7,0.29420001]
[1757026939842,2.4152138,4347.8,4347.7,0.74450001]
[1757026940044,2.4152138,4347.8,4347.7,1.17370001]
[1757026940753,2.29968318,4348.5,4347.7,1.29147001]
[1757026941085,2.29968318,4348.5,4348.0,0.1152]
[1757026941086,2.29977794,4348.3,4348.0,0.1152]
[1757026941556,2.29974932,4348.3,4348.2,0.2942]
[1757026941767,2.29974932,4348.3,4348.2,0.7445]
[1757026942062,2.2998551,4348.1,4347.7,1e-08]
[1757026942250,2.3000138,4347.8,4347.7,1e-08]
[1757026943050,2.3000138,4347.8,4347.7,0.29420001]
[1757026943641,2.6105138,4347.8,4347.7,1e-08]
[1757026943843,3.9750138,4347.8,4347.7,1e-08]
[1757026944155,0.1152,4347.8,4347.7,0.29420001]
[1757026944335,0.1152,4348.3,4347.7,0.40940001]
[1757026944653,0.1152,4348.3,4347.7,0.29420001]
[1757026944854,2.29985914,4348.1,4347.8,0.4292]
[1757026945062,2.3000138,4347.8,4347.7,1e-08]
[1757026945435,2.3000138,4347.8,4347.7,0.29420001]
[1757026945941,2.6105138,4347.8,4347.7,1e-08]
[1757026946149,2.7257138,4347.8,4347.7,1e-08]
[1757026946464,2.4152138,4347.8,4347.7,1e-08]
[1757026949427,2.7257138,4347.8,4347.7,1e-08]
[1757026949627,2.4152138,4347.8,4347.7,1e-08]
[1757026949828,0.1152,4347.8,4347.7,0.29420001]
[1757026950148,2.41509436,4348.1,4347.7,1.17370001]
[1757026950456,2.41509436,4348.1,4347.8,0.8795]
[1757026950668,2.41509436,4348.1,4348.0,0.2942]
[1757026950853,0.001,4348.3,4348.0,1.1737]
[1757026951053,0.001,4348.3,4348.1,0.8795]
[1757026951439,0.001,4348.3,4348.2,1.2889]
[1757026954172,0.001,4348.3,4348.2,3.58870221]
[1757026954967,0.001,4348.3,4348.2,1.2889]
[1757026955163,0.001,4348.3,4348.2,3.58870221]
[1757026955333,0.001,4348.3,4348.2,4.00947833]
[1757026955754,0.001,4348.3,4348.2,4.03247635]
[1757026955957,0.001,4348.3,4348.2,4.00947833]
[1757026957371,0.001,4348.3,4348.2,8.10347833]
[1757026957574,0.001,4348.3,4348.2,1.28047612]
[1757026957741,0.001,4348.3,4348.2,0.4094]
[1757026958057,0.001,4348.3,4348.2,5.3829]
[1757026960465,2.30074932,4348.3,4348.2,0.1152]
[1757026960672,2.3000138,4347.8,4347.7,1e-08]
[1757026960886,2.29995758,4348.0,4347.7,4.09300001]
[1757026961254,0.885,4348.3,4347.7,4.09300001]
[1757026961459,0.2911,4347.8,4347.7,1e-08]
[1757026961678,2.29980221,4348.2,4347.8,0.1152]
[1757026961897,2.72940221,4348.2,4347.9,4.093]
[1757026962077,2.29994499,4348.0,4347.9,4.093]
[1757026962380,0.001,4348.3,4347.9,4.8683]
[1757026962588,0.001,4348.3,4348.1,0.1152]
[1757026962790,2.29980221,4348.2,4348.1,0.1152]
[1757026963891,0.001,4348.3,4348.1,0.1152]
[1757026964679,2.29980221,4348.2,4348.1,0.1152]
[1757026964847,0.001,4348.3,4348.1,0.4161]
[1757026965252,2.29980221,4348.2,4348.1,0.4161]
[1757026965496,2.29980221,4348.2,4348.1,0.1152]
[1757026966556,2.30075603,4348.3,4348.1,0.1152]
[1757026966750,2.29980221,4348.2,4348.1,0.1152]
[1757026966951,0.001,4348.3,4348.2,1.2353]
[1757026967150,0.001,4348.3,4348.2,3.53510221]
[1757026967451,0.001,4348.3,4348.2,3.76550221]
[1757026967852,0.001,4348.3,4348.2,3.78850023]
[1757026968355,0.001,4348.3,4348.2,3.76550221]
[1757026968557,0.001,4348.3,4348.2,4.8234251]
[1757026970068,0.001,4348.3,4348.2,6.15462289]
[1757026970285,0.001,4348.3,4348.2,8.9144251]
[1757026971580,0.001,4348.3,4348.2,6.15462289]
[1757026971786,0.001,4348.3,4348.2,4.2062]
[1757026972084,0.2921,4348.3,4348.2,4.2062]
[1757026972380,0.001,4348.3,4348.2,4.2062]
[1757026972585,0.2921,4348.3,4348.2,4.2062]
[1757026973361,0.2921,4348.3,4348.2,0.1152]
[1757026973561,0.2921,4348.3,4348.2,4.2062]
[1757026974057,0.2921,4348.3,4348.2,4.2052]
[1757026974258,0.7217,4348.3,4348.2,4.2052]
[1757026974563,0.2921,4348.3,4348.2,4.2052]
[1757026976987,0.001,4348.3,4348.2,0.1152]
[1757026977288,0.001,4348.3,4348.2,4.2052]
[1757026977470,0.001,4348.3,4348.2,4.5061]
[1757026977666,0.001,4348.3,4348.2,8.42089676]
[1757026978277,0.001,4348.3,4348.2,8.30569676]
[1757026978480,0.001,4348.3,4348.2,8.42089676]
[1757026980961,0.001,4348.7,4348.6,2.29959067]
[1757026981274,0.001,4349.2,4348.7,3.792]
[1757026981473,0.001,4349.2,4349.1,0.4161]
[1757026981677,0.001,4349.2,4349.1,6.80342629]
[1757026981993,0.001,4349.2,4349.1,7.73782629]
[1757026983484,0.001,4349.2,4349.1,11.52982629]
[1757026985098,0.001,4349.2,4349.1,7.44182629]
[1757026985299,0.001,4349.2,4349.1,12.6230747]
[1757026985806,0.001,4349.2,4349.1,7.7440747]
[1757026985963,0.001,4349.2,4349.1,11.8310747]
[1757026987670,0.001,4349.2,4349.1,12.6230747]
[1757026987986,0.001,4349.2,4349.1,12.71520843]
[1757026989100,0.001,4349.2,4349.1,12.71320843]
[1757026990404,0.001,4350.4,4349.1,12.71320843]
[1757026990405,0.001,4350.4,4350.3,2.29869204]
[1757026990604,0.001,4350.4,4350.3,13.97062515]
[1757026990905,0.001,4350.4,4350.3,15.20433823]
[1757026991905,0.001,4350.4,4350.3,15.99633823]
[1757026992106,0.4496,4352.0,4350.8,2.29842787]
[1757026992403,0.4496,4352.0,4350.8,10.28030549]
[1757026992610,0.4496,4352.0,4350.8,11.51402122]
[1757026993007,0.4496,4352.0,4350.8,7.43002122]
[1757026993182,0.4496,4351.7,4350.8,11.05152122]
[1757026993377,0.9456,4352.1,4350.8,11.51302122]
[1757026995004,0.4746,4351.8,4350.8,11.51302122]
[1757026995392,0.025,4351.8,4350.8,12.30502122]
[1757026995592,0.025,4351.8,4350.8,14.61602121]
[1757026996482,0.025,4351.8,4350.8,12.30502122]
[1757026997513,0.001,4351.4,4350.8,12.30502122]
[1757027001623,0.001,4351.4,4350.8,10.53302121]
[1757027001840,0.001,4351.4,4350.8,14.61302121]
[1757027002212,0.001,4351.4,4350.8,10.53302121]
[1757027002413,0.001,4351.4,4350.8,14.61302121]
[1757027003021,1e-08,4351.8,4351.7,3.08995252]
[1757027003210,1e-08,4351.8,4351.7,12.17194777]
[1757027003412,1e-08,4351.8,4351.7,11.37994777]
[1757027003413,0.29860001,4351.8,4351.7,11.37994777]
[1757027003700,0.29860001,4351.8,4351.7,11.82954777]
[1757027004226,0.29860001,4351.8,4351.7,12.93684777]
[1757027004227,1e-08,4351.8,4351.7,12.93684777]
[1757027006503,1e-08,4351.8,4351.7,13.87824777]
[1757027009712,0.29860001,4351.8,4351.7,7.75054777]
[1757027009917,0.29860001,4351.8,4351.7,11.82754777]
[1757027010119,1e-08,4351.8,4351.7,12.93484777]
[1757027010308,1e-08,4351.8,4351.7,13.87624777]
[1757027010933,1e-08,4351.8,4351.7,12.93484777]
[1757027011236,1e-08,4351.8,4351.7,8.85784777]
[1757027011450,0.74820001,4351.8,4351.7,7.75054777]
[1757027011738,0.74820001,4351.8,4351.7,11.82654777]
[1757027012036,0.74820001,4351.8,4351.7,11.82554777]
[1757027012037,1.24420001,4351.8,4351.7,11.82554777]
[1757027013029,0.74820001,4351.8,4351.7,11.94074777]
[1757027013604,0.74820001,4351.8,4351.7,7.86574777]
[1757027013826,1.24420001,4351.8,4351.7,11.94074777]
[1757027014237,0.74820001,4351.8,4351.7,11.94074777]
[1757027014550,0.74820001,4351.8,4351.7,7.86574777]
[1757027014709,1.24420001,4351.8,4351.7,2.2588]
[1757027014909,1.24420001,4351.8,4351.7,6.3328]
[1757027015344,1.24420001,4351.8,4351.7,5.8832]
[1757027015552,1.24420001,4351.8,4351.7,1.8092]
[1757027015762,3.54209972,4351.8,4351.7,1.8092]
[1757027015909,2.29817473,4351.3,4350.9,1.693]
[1757027016110,3.24383514,4351.2,4351.0,4.074]
[1757027016338,1.2442,4351.1,4351.0,4.074]
[1757027016710,3.5424694,4351.1,4351.0,4.1892]
[1757027017747,3.5424694,4351.1,4351.0,0.1152]
[1757027018054,3.5424694,4351.1,4350.8,0.025]
[1757027018055,2.29837504,4350.9,4350.8,0.025]
[1757027018412,4.33457504,4350.9,4350.8,0.025]
[1757027018613,7.33457504,4350.9,4350.8,0.025]
[1757027020137,7.44977504,4350.9,4350.8,0.025]
[1757027021252,6.09042787,4350.8,4349.8,0.025]
[1757027021424,2.29890342,4349.9,4349.8,0.025]
[1757027021625,3.38990342,4349.9,4349.8,0.025]
[1757027021848,4.32020342,4349.9,4349.8,0.025]
[1757027022037,3.52820342,4349.9,4349.8,0.025]
[1757027022224,3.64340342,4349.9,4349.8,0.025]
[1757027022834,4.43540342,4349.9,4349.8,0.025]
[1757027025236,8.50840342,4349.9,4349.8,0.025]
[1757027026351,4.43540342,4349.9,4349.8,0.025]
[1757027026551,3.64340342,4349.9,4349.8,0.025]
[1757027026755,1.3445,4349.9,4349.8,0.025]
[1757027026958,3.64340342,4349.9,4349.8,0.025]
[1757027028245,4.43540342,4349.9,4349.8,0.025]
[1757027029262,7.43540342,4349.9,4349.8,0.025]
[1757027029429,11.50740342,4349.9,4349.8,0.025]
[1757027031365,7.43540342,4349.9,4349.8,0.029]
[1757027031976,6.64340342,4349.9,4349.8,0.029]
[1757027032755,7.43540342,4349.9,4349.8,0.029]
[1757027035764,11.50640342,4349.9,4349.8,0.029]
[1757027037073,11.50540342,4349.9,4349.8,0.029]
[1757027037984,11.50540342,4349.9,4349.8,1e-08]
[1757027041869,7.43540342,4349.9,4349.8,1e-08]
[1757027042073,11.50440342,4349.9,4349.8,1e-08]
[1757027042271,7.43540342,4349.9,4349.8,1e-08]
[1757027042440,10.11120342,4349.9,4349.8,1e-08]
[1757027042643,10.45890342,4349.9,4349.8,1e-08]
[1757027042879,10.90320342,4349.9,4349.8,1e-08]
[1757027043686,10.15990342,4349.9,4349.8,1e-08]
[1757027043860,9.36790342,4349.9,4349.8,1e-08]
[1757027044178,9.36790342,4349.9,4349.8,0.28910001]
[1757027044374,9.36790342,4349.9,4349.8,1.21810001]
[1757027044375,2.29890342,4349.9,4349.8,1.21810001]
[1757027044772,5.29890342,4349.9,4349.8,1.21810001]
[1757027045068,2.34945266,4350.8,4349.8,1.33991001]
[1757027045257,0.026,4350.8,4349.9,0.929]
[1757027045461,0.026,4350.8,4350.7,0.2891]
[1757027045981,0.026,4350.8,4350.7,0.759]
[1757027046273,0.026,4350.8,4350.7,0.2891]
[1757027046441,2.32442787,4350.8,4350.7,0.759]
[1757027047173,2.29885057,4350.0,4349.9,1.695]
[1757027047475,2.29853353,4350.6,4349.8,1e-08]
[1757027047476,2.29890342,4349.9,4349.8,1e-08]
[1757027047657,2.29885382,4350.0,4349.8,1e-08]
[1757027047988,0.792,4350.2,4349.8,1e-08]
[1757027048192,0.299,4349.9,4349.8,1e-08]
[1757027048358,2.29890342,4349.9,4349.8,1e-08]
[1757027049299,2.59890342,4349.9,4349.8,1e-08]
[1757027049469,2.29890342,4349.9,4349.8,1e-08]
[1757027049996,2.59890342,4349.9,4349.8,1e-08]
[1757027050371,7.09980342,4349.9,4349.8,1e-08]
[1757027050571,11.38390342,4349.9,4349.8,1e-08]
[1757027052196,0.792,4349.4,4348.9,0.004]
[1757027052396,7.2723677,4349.4,4348.9,0.004]
[1757027052605,8.0062677,4349.4,4348.9,0.004]
[1757027052887,7.5723677,4349.4,4348.9,0.004]
[1757027053389,8.0062677,4349.4,4348.9,0.004]
[1757027054090,8.0062677,4349.4,4348.8,0.029]
[1757027054091,0.792,4348.9,4348.8,0.029]
[1757027054290,10.15643204,4348.9,4348.8,0.029]
[1757027054498,10.89033204,4348.9,4348.8,0.029]
[1757027054990,11.38243204,4348.9,4348.8,1e-08]
[1757027055401,11.38243204,4348.9,4347.8,0.025]
[1757027055402,3.091908,4348.0,4347.8,0.025]
[1757027055600,10.156908,4348.0,4347.8,0.025]
[1757027055906,10.572108,4348.0,4347.8,0.025]
[1757027056056,11.08397111,4348.0,4347.8,0.025]
[1757027056261,11.51787111,4348.0,4347.8,0.025]
[1757027056591,6.0919609,4347.9,4347.8,1e-08]
[1757027056888,7.0179609,4347.9,4347.8,1e-08]
[1757027057077,7.3179609,4347.9,4347.8,1e-08]
[1757027057283,6.0920667,4347.7,4347.6,1e-08]
[1757027057494,10.1570667,4347.7,4347.6,1e-08]
[1757027057695,11.3830667,4347.7,4347.6,1e-08]
[1757027058389,11.4982667,4347.7,4347.6,1e-08]
[1757027058961,10.5722667,4347.7,4347.6,1e-08]
[1757027059160,11.4982667,4347.7,4347.6,1e-08]
[1757027061479,10.5712667,4347.7,4347.6,1e-08]
[1757027061680,11.4972667,4347.7,4347.6,1e-08]
[1757027061880,10.5712667,4347.7,4347.6,1e-08]
[1757027062078,10.1560667,4347.7,4347.6,1e-08]
[1757027062277,10.5712667,4347.7,4347.6,1e-08]
[1757027062479,9.4792667,4347.7,4347.6,1e-08]
[1757027062778,9.4792667,4347.7,4347.6,1.24030001]
[1757027062974,9.4792667,4347.7,4347.6,0.31220001]
[1757027063188,10.2712667,4347.7,4347.6,1e-08]
[1757027063388,10.5712667,4347.7,4347.6,1e-08]
[1757027063827,10.2712667,4347.7,4347.6,1e-08]
[1757027064112,10.5712667,4347.7,4347.6,1e-08]
[1757027064321,11.0051667,4347.7,4347.6,1e-08]
[1757027066419,11.4972667,4347.7,4347.6,1e-08]
[1757027067684,11.4982667,4347.7,4347.6,1e-08]
[1757027067887,0.792,4347.2,4347.1,1e-08]
[1757027068121,11.85033124,4347.2,4347.1,1e-08]
[1757027068309,13.44696613,4347.2,4347.1,1e-08]
[1757027068695,13.07633124,4347.2,4347.1,1e-08]
[1757027069527,12.58423124,4347.2,4347.1,1e-08]
[1757027069920,13.07633124,4347.2,4347.1,1e-08]
[1757027070225,0.792,4347.0,4346.8,1e-08]
[1757027070415,10.15449,4346.9,4346.8,1e-08]
[1757027070596,10.45549,4346.9,4346.8,1e-08]
[1757027073000,6.39249,4346.9,4346.8,1e-08]
[1757027073331,10.45449,4346.9,4346.8,1e-08]
[1757027073700,10.88839,4346.9,4346.8,1e-08]
[1757027074113,11.38049,4346.9,4346.8,1e-08]
[1757027074532,10.88839,4346.9,4346.8,1e-08]
[1757027077831,3.09254292,4346.8,4346.7,1e-08]
[1757027078047,3.64164292,4346.8,4346.7,1e-08]
[1757027078334,3.50774292,4346.8,4346.7,1e-08]
[1757027078637,6.47574292,4346.8,4346.7,0.31220001]
[1757027078934,7.26774292,4346.8,4346.7,0.31220001]
[1757027079301,7.56634292,4346.8,4346.7,1e-08]
[1757027080812,3.20774292,4346.8,4346.7,0.77290001]
[1757027081039,7.26774292,4346.8,4346.7,1.25410001]
[1757027081833,7.26774292,4346.8,4346.7,0.30790001]
[1757027082012,7.26674292,4346.8,4346.7,0.30790001]
[1757027082640,2.41574292,4346.8,4346.7,1.25410001]
[1757027082942,9.47474292,4346.8,4346.7,1.25410001]
[1757027085053,10.26674292,4346.8,4346.7,1.25410001]
[1757027085248,10.26674292,4346.8,4346.7,0.30790001]
[1757027085545,10.56534292,4346.8,4346.7,1e-08]
[1757027086115,11.01684292,4346.8,4346.7,1e-08]
[1757027086345,3.09301935,4345.9,4345.8,0.025]
[1757027086547,10.15101935,4345.9,4345.8,0.025]
[1757027086840,10.26621935,4345.9,4345.8,0.3329]
[1757027087444,10.26621935,4345.9,4345.8,0.3369]
[1757027088552,6.20821935,4345.9,4345.8,0.3369]
[1757027088757,10.26521935,4345.9,4345.8,1.2831]
[1757027088925,10.26521935,4345.9,4345.8,0.3369]
[1757027089555,10.56381935,4345.9,4345.8,0.029]
[1757027089713,10.26521935,4345.9,4345.8,0.029]
[1757027090656,10.26521935,4345.9,4345.8,0.3369]
[1757027090946,10.56381935,4345.9,4345.8,0.029]
[1757027091565,10.26521935,4345.9,4345.8,0.3369]
[1757027092068,10.56381935,4345.9,4345.8,0.029]
[1757027092563,10.26521935,4345.9,4345.8,0.029]
[1757027092980,10.26521935,4345.9,4345.8,0.3369]
[1757027093187,5.41621935,4345.9,4345.8,1.2831]
[1757027093644,2.41621935,4345.9,4345.8,1.2831]
[1757027095765,2.41621935,4345.9,4345.8,0.3369]
[1757027096071,7.26321935,4345.9,4345.8,0.029]
[1757027096648,7.26321935,4345.9,4345.8,0.3369]
[1757027096972,7.26321935,4345.9,4345.8,1.2831]
[1757027099452,10.56181935,4345.9,4345.8,0.029]
[1757027100376,6.20821935,4345.9,4345.8,0.3369]
[1757027100576,10.55981935,4345.9,4345.8,0.029]
[1757027101280,10.26121935,4345.9,4345.8,0.3369]
[1757027101650,10.55981935,4345.9,4345.8,0.029]
[1757027101976,11.01131935,4345.9,4345.8,0.029]
[1757027102387,11.49771935,4345.9,4345.8,0.029]
[1757027102690,0.792,4345.5,4343.1,0.9462]
[1757027102979,0.792,4345.5,4343.5,0.9462]
[1757027102980,6.09407877,4343.9,4343.5,0.9462]
[1757027103146,0.1152,4343.9,4343.8,1.2791]
[1757027103352,2.30207877,4343.9,4343.8,2.39647067]
[1757027103659,0.1152,4344.2,4343.8,2.39647067]
[1757027103851,0.1152,4344.2,4343.9,0.9462]
[1757027104278,0.1152,4344.2,4344.1,0.3079]
[1757027104780,2.4171198,4344.2,4344.1,1.2541]
[1757027105855,0.1152,4344.2,4344.1,1.2541]
[1757027106072,2.4171198,4344.2,4344.1,1.2541]
[1757027106864,2.4171198,4344.2,4344.1,1.38241]
[1757027106865,0.1152,4344.2,4344.1,1.38241]
[1757027107062,2.41673866,4345.0,4344.1,1.49761]
[1757027107287,0.1152,4345.0,4344.4,0.1152]
[1757027107494,0.1152,4345.0,4344.9,0.3079]
[1757027107792,2.30134098,4345.3,4344.9,1.2541]
[1757027107992,2.30134098,4345.3,4345.0,0.4812]
[1757027108181,2.30134098,4345.3,4345.0,0.9462]
[1757027108390,0.1152,4345.4,4345.2,0.3079]
[1757027108561,2.41648532,4345.4,4345.3,0.9462]
[1757027108765,0.1152,4345.4,4345.3,1.2541]
[1757027109070,2.30116933,4345.7,4345.3,1.2541]
[1757027109269,2.30117928,4345.6,4345.3,0.3079]
[1757027109468,2.30118223,4345.6,4345.4,0.932]
[1757027109695,2.30118223,4345.6,4345.5,1.2336]
[1757027110000,3.1152,4345.8,4345.5,1.2336]
[1757027110296,0.1152,4345.8,4345.6,0.932]
[1757027110476,0.1152,4345.8,4345.7,1.2336]
[1757027111063,1.696,4346.5,4345.7,11.12820673]
[1757027111297,0.001,4346.7,4345.7,11.12820673]
[1757027111298,2.41606924,4346.2,4345.8,0.932]
[1757027111595,2.41606052,4346.2,4346.1,0.3016]
[1757027111798,2.41606052,4346.2,4345.6,0.1152]
[1757027111799,0.792,4346.1,4345.3,0.932]
[1757027112000,0.1152,4345.8,4345.3,0.932]
[1757027112174,2.30112525,4345.7,4345.3,0.932]
[1757027112369,2.30112525,4345.7,4345.2,4.1662]
[1757027112370,0.1152,4345.8,4345.6,0.3016]
[1757027112576,2.30112525,4345.7,4345.6,0.3016]
[1757027113602,0.1152,4345.8,4345.3,0.4699]
[1757027113603,2.30124079,4345.5,4345.3,0.4699]
[1757027113901,6.35097141,4346.0,4345.4,1.2336]
[1757027114078,2.3011782,4345.6,4345.5,0.1152]
[1757027114284,2.3011782,4345.6,4345.5,0.3016]
[1757027114484,2.30111476,4345.8,4345.5,0.3016]
[1757027114686,2.30102363,4345.9,4345.5,0.7637]
[1757027114885,2.30098886,4346.0,4345.6,0.932]
[1757027115078,0.1152,4346.1,4346.0,0.3016]
[1757027115274,2.30160413,4346.7,4346.0,1.2336]
[1757027115473,0.001,4346.7,4346.1,0.932]
[1757027115685,0.001,4346.7,4346.6,0.3016]
[1757027115885,2.30160474,4346.7,4346.6,0.3016]
[1757027117477,2.30075464,4346.4,4346.3,0.1152]
[1757027117906,2.30075464,4346.4,4346.3,0.4168]
[1757027118089,2.30090853,4346.2,4345.7,13.94360673]
[1757027118290,2.30086984,4346.2,4345.9,0.1152]
[1757027118603,2.30081141,4346.3,4346.1,0.3016]
[1757027119002,2.41590461,4346.5,4346.1,0.3016]
[1757027119199,2.30084676,4346.3,4346.1,0.7637]
[1757027119402,2.30080758,4346.3,4346.2,0.932]
[1757027119608,2.30076248,4346.4,4346.2,1.2336]
[1757027119813,0.1152,4346.5,4346.3,0.932]
[1757027120127,2.30075627,4346.4,4346.3,0.932]
[1757027120284,0.001,4346.7,4346.3,1.35696]
[1757027120477,2.30065428,4346.6,4346.4,0.932]
[1757027120681,2.30065428,4346.6,4346.5,1.2336]
[1757027121434,2.30065428,4346.6,4346.5,0.3016]
[1757027121626,2.30065428,4346.6,4345.6,2.1581]
[1757027121627,2.30070171,4346.5,4345.6,2.1581]
[1757027121917,2.30070171,4346.5,4345.6,0.1152]
[1757027121918,2.30097713,4346.0,4345.6,0.1152]
[1757027122103,0.1152,4346.2,4345.6,0.5773]
[1757027122423,2.30098072,4346.0,4345.9,0.3016]
[1757027122584,2.30098072,4346.0,4345.6,0.1152]
[1757027122585,0.3046,4346.0,4345.6,0.1152]
[1757027122788,2.6056002,4346.0,4345.6,0.1152]
[1757027122989,2.30101935,4345.9,4345.6,0.1152]
[1757027123305,2.30107229,4345.8,4345.6,0.1152]
[1757027123489,2.30101935,4345.9,4345.6,0.1152]
[1757027123683,2.30111632,4345.8,4345.6,0.1152]
[1757027123886,2.30101935,4345.9,4345.6,0.1152]
[1757027124118,2.30112525,4345.7,4345.6,0.1152]
[1757027124613,2.30112525,4345.7,4345.6,0.4168]
[1757027125007,2.41606807,4346.2,4345.6,0.4168]
[1757027125215,2.30095386,4346.1,4345.6,0.8867]
[1757027125424,0.1152,4346.2,4345.7,0.4621]
[1757027125588,2.30076237,4346.4,4345.8,4.046]
[1757027125915,2.30070493,4346.5,4346.3,0.3016]
[1757027126085,2.30070493,4346.5,4346.3,1.2336]
[1757027126286,2.30070493,4346.5,4346.3,0.3016]
[1757027126591,2.30165156,4346.6,4346.3,0.3016]
[1757027126793,0.001,4346.6,4346.4,0.932]
[1757027127096,0.001,4346.6,4346.5,1.2336]
[1757027127484,0.001,4346.6,4346.5,11.67917374]
[1757027127686,0.001,4346.6,4346.5,11.77136673]
[1757027129188,0.001,4346.6,4346.5,14.07206844]
[1757027130810,0.001,4346.6,4346.5,18.11706844]
[1757027131429,0.001,4346.6,4346.5,21.11706844]
[1757027131598,0.001,4346.6,4346.5,34.32726151]
[1757027135894,0.001,4346.6,4346.5,34.41945683]
[1757027137027,0.001,4346.6,4346.5,35.38539128]
[1757027137210,1e-08,4346.9,4346.8,3.09254292]
[1757027137412,1e-08,4346.9,4346.8,12.54065631]
[1757027137612,1e-08,4346.9,4346.8,13.75125089]
[1757027142145,1e-08,4347.6,4347.5,33.23244656]
[1757027145636,0.30370001,4347.6,4347.5,27.97964656]
[1757027145838,0.30370001,4347.6,4347.5,26.75073859]
[1757027146322,1.22190001,4347.6,4347.5,26.74973859]
[1757027147326,0.74980001,4347.6,4347.5,26.74973859]
[1757027148151,1.22190001,4347.6,4347.5,24.44956608]
[1757027148326,1.22190001,4347.6,4347.5,26.65756558]
[1757027148526,1.22190001,4347.6,4347.5,21.35856558]
[1757027148727,1.22190001,4347.6,4347.5,19.05839307]
[1757027148927,1.22190001,4347.6,4347.5,21.35856558]
[1757027150340,1.22190001,4347.6,4347.5,15.02039307]
[1757027150559,1.34679001,4347.6,4347.5,5.8472]
[1757027150755,1.22190001,4347.6,4347.5,5.8472]
[1757027151523,1.22190001,4347.6,4347.5,19.05739307]
[1757027152926,3.52201961,4347.6,4347.5,0.1152]
[1757027153129,1.22190001,4347.6,4347.5,4.036]
[1757027154129,3.52201961,4347.6,4347.5,4.036]
[1757027154932,1.22190001,4347.6,4347.5,4.036]
[1757027156756,3.52201961,4347.6,4347.5,4.036]
[1757027157640,1.22190001,4347.6,4347.5,4.036]
[1757027158977,0.74980001,4347.6,4347.5,17.24619307]
[1757027159162,0.30370001,4347.6,4347.5,17.24619307]
[1757027159644,0.74980001,4347.6,4347.5,17.24619307]
[1757027160265,1e-08,4347.6,4347.5,18.12455617]
[1757027160448,1e-08,4347.6,4347.5,20.42472868]
[1757027160973,1e-08,4347.6,4347.5,20.42872868]
[1757027161375,1e-08,4347.6,4347.5,21.32922868]
[1757027161731,1e-08,4347.6,4347.5,17.81625617]
[1757027161933,3.52201961,4347.6,4347.5,4.1532]
[1757027162134,3.52201961,4347.6,4347.5,4.038]
[1757027163586,1.22190001,4347.6,4347.5,4.038]
[1757027163750,0.30370001,4347.6,4347.5,4.038]
[1757027164080,3.52201961,4347.6,4347.5,0.004]
[1757027164246,1.22190001,4347.6,4347.5,0.004]
[1757027164447,3.52201961,4347.6,4347.5,0.004]
[1757027164660,0.30370001,4347.6,4347.5,0.004]
[1757027164845,3.52201961,4347.6,4347.5,4.037]
[1757027165045,3.52201961,4347.6,4347.5,0.004]
[1757027165245,4.42921961,4347.6,4347.5,0.004]
[1757027165650,7.42921961,4347.6,4347.5,0.004]
[1757027166271,11.46221961,4347.6,4347.5,0.004]
[1757027168247,3.09238416,4347.1,4347.0,0.004]
[1757027168550,3.20758416,4347.1,4347.0,0.004]
[1757027168874,11.46588416,4347.1,4347.0,0.004]
[1757027169261,11.46588416,4347.1,4347.0,1e-08]
[1757027170876,2.30103234,4345.9,4345.6,0.1152]
[1757027171086,2.30110034,4345.8,4345.6,0.1152]
[1757027171274,2.30110034,4345.8,4345.3,1.695]
[1757027171462,2.59002984,4345.7,4345.4,0.1152]
[1757027171656,2.30119291,4345.6,4345.4,0.1152]
[1757027171880,2.30128411,4345.4,4345.3,1.695]
[1757027172050,2.70538411,4345.4,4345.3,1.695]
[1757027172252,2.30133707,4345.3,4345.2,1.399]
[1757027172462,0.4041,4345.4,4345.2,1.399]
[1757027172660,2.41649846,4345.4,4345.2,1.399]
[1757027173567,0.1152,4345.4,4345.2,1.399]
[1757027174082,0.2889,4345.3,4345.2,1.399]
[1757027174384,0.2889,4345.3,4344.9,13.21019307]
[1757027174385,0.1152,4345.4,4344.9,13.21019307]
[1757027174554,0.1152,4345.4,4344.9,14.17789307]
[1757027175481,0.1152,4345.4,4345.0,0.4987]
[1757027176051,0.1152,4345.4,4345.3,0.308]
[1757027176583,0.1152,4345.4,4345.0,0.9677]
[1757027177661,0.1152,4345.4,4345.3,0.308]
[1757027178288,2.70538411,4345.4,4344.9,13.21019307]
[1757027178957,2.70538411,4345.4,4344.9,4.03]
[1757027179282,0.4041,4345.4,4345.3,0.004]
[1757027179482,0.1152,4345.4,4345.3,0.004]
[1757027180582,0.1152,4345.4,4345.3,0.312]
[1757027180790,0.1152,4345.6,4345.3,1.2797]
[1757027180973,2.30112947,4345.7,4345.3,0.8107]
[1757027181181,2.30112947,4345.7,4345.3,1.2797]
[1757027181353,2.30118178,4345.6,4345.3,1.97163857]